bitfinex-derivatives/quotes_SOLF0:USTF0_20251119
["timestamp","ask_amount","ask_price","bid_price","bid_amount"]
[1763513340640,3.15,141.26,141.17,8.21801616]
[1763513341340,3.15,141.26,141.13,136.8489]
[1763513341341,9.57138572,141.23,141.2,0.05410817]
[1763513341543,3.15,141.21,141.13,8.21801616]
[1763513342044,3.15,141.19,141.13,8.21801616]
[1763513342433,0.05008876,141.17,141.15,0.04705974]
[1763513342639,3.20008876,141.17,141.15,0.04705974]
[1763513342833,0.05008876,141.17,141.15,0.04705974]
[1763513343133,3.15,141.25,141.16,99.2305]
[1763513343448,3.15,141.25,141.17,8.21801616]
[1763513343947,3.01,141.24,141.17,8.21801616]
[1763513344245,0.0468816,141.22,141.19,0.05426103]
[1763513344643,3.0568816,141.22,141.19,0.05426103]
[1763513344847,3.01,141.21,141.19,0.05426103]
[1763513349143,0.0468816,141.22,141.19,0.05426103]
[1763513351248,0.0468816,141.22,141.19,6.43176103]
[1763513352448,0.0468816,141.22,141.2,6.377]
[1763513352651,3.01,141.28,141.21,107.41261616]
[1763513353441,3.01,141.28,141.17,136.7609]
[1763513353442,3.01,141.26,141.17,45.75801616]
[1763513353647,3.05792209,141.23,141.2,0.04967859]
[1763513354345,0.04792209,141.23,141.2,0.04967859]
[1763513354852,3.01,141.27,141.2,99.24857859]
[1763513355247,3.01,141.27,141.21,37.54]
[1763513355451,0.19087,141.29,141.22,99.1875]
[1763513355750,0.19087,141.29,141.25,8.21801616]
[1763513356045,0.05103557,141.28,141.26,37.59292516]
[1763513356248,3.06103557,141.28,141.26,0.05292516]
[1763513356851,3.06103557,141.28,141.2,43.917]
[1763513357049,3.01,141.28,141.2,43.917]
[1763513357857,0.04777749,141.25,141.23,0.04843927]
[1763513359948,3.05777749,141.25,141.23,0.04843927]
[1763513360150,3.05777749,141.25,141.19,37.52]
[1763513360353,3.05777749,141.25,141.17,4.9021093]
[1763513360655,3.01,141.24,141.17,4.9021093]
[1763513360954,9.3865,141.22,141.15,6.3792]
[1763513361158,0.05273384,141.2,141.17,0.04636211]
[1763513361358,3.06273384,141.2,141.17,0.04636211]
[1763513362354,0.05273384,141.2,141.17,0.04636211]
[1763513362753,0.05273384,141.2,141.18,6.378]
[1763513363566,0.05273384,141.2,141.17,0.04636211]
[1763513366163,0.05273384,141.2,141.17,6.42486211]
[1763513366354,0.05273384,141.2,141.17,0.04636211]
[1763513367761,3.30273384,141.2,141.17,0.04636211]
[1763513369258,0.05273384,141.2,141.17,0.04636211]
[1763513369460,0.05273384,141.2,141.18,6.3781]
[1763513370256,0.05273384,141.2,141.17,0.04636211]
[1763513370772,3.30273384,141.2,141.17,0.04636211]
[1763513372060,3.30273384,141.2,141.17,6.42486211]
[1763513372770,0.05273384,141.2,141.18,6.3781]
[1763513375665,0.05273384,141.2,141.17,4.94847141]
[1763513376170,0.05273384,141.2,141.18,6.3781]
[1763513378168,3.25,141.24,141.19,6.3773]
[1763513379068,0.04832584,141.23,141.2,0.05362171]
[1763513379273,0.04832584,141.23,141.2,4.95573101]
[1763513380374,0.04832584,141.23,141.21,6.3767]
[1763513380578,3.24,141.27,141.2,42.39573101]
[1763513381679,0.04644393,141.25,141.2,42.39573101]
[1763513381878,0.04644393,141.25,141.21,99.1955]
[1763513382570,3.24,141.27,141.23,4.9021093]
[1763513383571,0.19087,141.29,141.23,4.9021093]
[1763513383776,0.05406439,141.26,141.24,0.04551098]
[1763513385077,0.05406439,141.26,141.24,6.42091098]
[1763513385574,0.05406439,141.26,141.24,0.04551098]
[1763513386882,0.05406439,141.26,141.24,6.42091098]
[1763513387378,3.29406439,141.26,141.24,0.04551098]
[1763513390277,0.05406439,141.26,141.24,0.04551098]
[1763513390779,0.05406439,141.26,141.24,6.42091098]
[1763513393076,3.29406439,141.26,141.24,0.04551098]
[1763513394674,3.24,141.25,141.17,8.64195053]
[1763513394869,3.24,141.25,141.18,37.4]
[1763513395085,9.6152,141.25,141.18,43.7779]
[1763513395287,3.24,141.25,141.18,37.4]
[1763513395680,3.29042712,141.23,141.2,0.04569588]
[1763513396583,0.05042712,141.23,141.2,6.42289588]
[1763513396787,0.05042712,141.23,141.2,0.04569588]
[1763513397987,0.05042712,141.23,141.21,6.3768]
[1763513398190,0.05042712,141.23,141.21,43.7768]
[1763513400386,3.24,141.27,141.21,136.5925]
[1763513400589,0.19087,141.29,141.23,4.9021093]
[1763513400788,0.19087,141.29,141.24,136.5547]
[1763513400990,0.19087,141.29,141.27,6.3741]
[1763513401195,0.19087,141.29,141.27,43.7541]
[1763513401398,8.40093734,141.35,141.29,4.9021093]
[1763513401399,2.03003734,141.35,141.29,4.9021093]
[1763513401600,2.03003734,141.35,141.32,6.3718]
[1763513401894,2.03003734,141.35,141.32,104.0176093]
[1763513402096,3.24,141.4,141.32,4.9021093]
[1763513402799,3.24,141.4,141.32,48.6738093]
[1763513402996,3.28825245,141.37,141.35,0.04951267]
[1763513403196,3.24,141.36,141.35,0.04951267]
[1763513403396,3.24,141.36,141.29,42.3021093]
[1763513403990,9.6102,141.36,141.29,42.3021093]
[1763513404386,3.09,141.33,141.31,0.04551987]
[1763513405095,0.0502765,141.34,141.27,37.38]
[1763513405096,3.09,141.32,141.27,37.38]
[1763513405298,3.09,141.32,141.26,37.38]
[1763513405496,9.462,141.32,141.26,37.38]
[1763513406108,0.0537832,141.3,141.28,0.04619042]
[1763513406309,3.09,141.29,141.28,0.04619042]
[1763513407200,3.09,141.28,141.21,4.9021093]
[1763513407509,3.09,141.28,141.21,37.38]
[1763513407900,9.464,141.28,141.21,43.7567]
[1763513408102,0.0460367,141.26,141.23,0.05457154]
[1763513409406,0.0460367,141.26,141.24,6.3754]
[1763513411503,0.0460367,141.26,141.24,11.2775093]
[1763513411709,3.09,141.35,141.26,99.1606]
[1763513411903,3.09,141.35,141.25,136.547]
[1763513412704,0.04557942,141.31,141.29,0.04730084]
[1763513413012,3.13557942,141.31,141.29,0.04730084]
[1763513413212,0.04557942,141.31,141.29,0.04730084]
[1763513414004,3.09,141.38,141.3,141.4126093]
[1763513414810,3.09,141.41,141.33,4.9021093]
[1763513415012,0.04575557,141.38,141.36,0.0541125]
[1763513415417,0.04575557,141.38,141.36,11.3261218]
[1763513415615,3.09,141.44,141.36,4.9562218]
[1763513416621,0.05210372,141.41,141.38,6.3691]
[1763513416918,0.05210372,141.41,141.38,6.41723511]
[1763513417420,0.05210372,141.41,141.39,6.3685]
[1763513417819,9.4549,141.48,141.42,6.3672]
[1763513418321,3.09,141.48,141.4,6.3682]
[1763513418914,3.09,141.48,141.43,0.05302551]
[1763513420321,3.09,141.46,141.43,0.05302551]
[1763513420824,3.09,141.5,141.44,37.36]
[1763513421518,3.09,141.5,141.43,0.05302551]
[1763513421723,3.09,141.5,141.44,37.36]
[1763513421920,6.3631,141.52,141.44,43.7262]
[1763513422121,3.08,141.51,141.47,0.05180348]
[1763513422523,3.08,141.48,141.47,0.05180348]
[1763513423428,3.08,141.5,141.47,0.05180348]
[1763513423924,9.4442,141.49,141.47,0.05180348]
[1763513425019,3.08,141.48,141.47,0.05180348]
[1763513425220,9.445,141.48,141.4,6.3682]
[1763513425415,3.08,141.48,141.4,43.7082]
[1763513425616,3.08,141.48,141.4,6.3682]
[1763513425926,9.4453,141.47,141.4,37.34]
[1763513426113,0.04937302,141.45,141.42,0.04721163]
[1763513426319,3.12937302,141.45,141.42,0.04721163]
[1763513427926,6.3667,141.44,141.42,0.04721163]
[1763513428328,0.04937302,141.45,141.42,0.04721163]
[1763513428522,3.12937302,141.45,141.42,0.04721163]
[1763513430422,9.49547302,141.45,141.42,0.04721163]
[1763513430930,3.08,141.44,141.42,0.04721163]
[1763513431332,9.4466,141.44,141.42,0.04721163]
[1763513431522,3.08,141.43,141.42,0.04721163]
[1763513432331,3.08,141.44,141.42,0.04721163]
[1763513432528,0.04937302,141.45,141.42,0.04721163]
[1763513433029,0.04937302,141.45,141.42,6.41451163]
[1763513433233,3.12937302,141.45,141.42,0.04721163]
[1763513434030,9.49547302,141.45,141.42,0.04721163]
[1763513434233,3.22,141.44,141.42,0.04721163]
[1763513434633,0.04937302,141.45,141.42,0.04721163]
[1763513435934,0.04937302,141.45,141.42,6.41431163]
[1763513436134,0.04937302,141.45,141.42,0.04721163]
[1763513437027,0.04937302,141.45,141.42,37.36721163]
[1763513438537,0.04937302,141.45,141.43,6.3668]
[1763513441947,3.22,141.55,141.47,99.0116]
[1763513442136,3.22,141.58,141.49,98.9994]
[1763513442332,3.22,141.58,141.48,99.0048]
[1763513442531,3.22,141.56,141.47,37.32]
[1763513442937,3.22,141.56,141.5,0.04647936]
[1763513443138,3.22,141.54,141.5,0.04647936]
[1763513443538,3.22,141.52,141.5,0.04647936]
[1763513447743,3.22,141.54,141.5,0.04647936]
[1763513448846,3.22,141.54,141.5,6.41017936]
[1763513449547,3.22,141.54,141.5,0.04647936]
[1763513451544,3.22,141.56,141.5,0.04647936]
[1763513451841,3.22,141.6,141.53,98.9681]
[1763513452046,3.22,141.6,141.56,6.361]
[1763513452638,5.25003734,141.64,141.57,98.9407]
[1763513452838,3.22,141.63,141.59,0.05165637]
[1763513453040,3.22,141.62,141.59,0.05165637]
[1763513453749,3.22,141.57,141.5,37.3]
[1763513454250,3.22,141.56,141.5,37.3]
[1763513454552,0.05269699,141.54,141.52,0.04957289]
[1763513454849,0.05269699,141.54,141.52,6.41237289]
[1763513455448,0.05269699,141.54,141.52,0.04957289]
[1763513459342,3.27269699,141.54,141.52,0.04957289]
[1763513461054,3.22,141.53,141.52,0.04957289]
[1763513462249,3.22,141.52,141.44,8.17142746]
[1763513462547,3.22,141.5,141.44,8.17142746]
[1763513463348,0.04977173,141.48,141.46,0.05065008]
[1763513463553,3.32977173,141.48,141.46,0.05065008]
[1763513465256,0.04977173,141.48,141.46,0.05065008]
[1763513465551,0.04977173,141.48,141.46,6.41615008]
[1763513466853,3.32977173,141.48,141.46,0.05065008]
[1763513467849,3.28,141.47,141.41,6.3674]
[1763513468162,3.28,141.47,141.4,37.28]
[1763513468452,8.67754037,141.47,141.4,37.28]
[1763513468644,3.28,141.47,141.43,6.3666]
[1763513468954,0.04518007,141.46,141.44,0.04825191]
[1763513469156,0.04518007,141.46,141.44,6.41465191]
[1763513471849,0.04518007,141.46,141.44,43.69465191]
[1763513474052,3.32518007,141.46,141.44,0.04825191]
[1763513474549,0.04518007,141.46,141.44,6.41465191]
[1763513474752,0.04518007,141.46,141.44,0.04825191]
[1763513476260,0.04518007,141.46,141.44,6.41465191]
[1763513476453,0.04518007,141.46,141.44,0.04825191]
[1763513477149,0.04518007,141.46,141.44,6.41465191]
[1763513477850,3.28,141.5,141.47,6.365]
[1763513478849,3.32485879,141.5,141.47,6.41080306]
[1763513479451,0.04485879,141.5,141.47,6.41080306]
[1763513479659,0.04485879,141.5,141.48,6.3645]
[1763513480547,0.04485879,141.5,141.47,0.04580306]
[1763513480750,3.32485879,141.5,141.47,0.04580306]
[1763513480963,0.04485879,141.5,141.47,37.30580306]
[1763513481956,0.04485879,141.5,141.48,6.3645]
[1763513483461,3.12485879,141.5,141.47,37.28580306]
[1763513484360,3.12485879,141.5,141.45,6.3659]
[1763513484361,8.49263723,141.49,141.41,37.24]
[1763513484667,3.08,141.48,141.41,37.24]
[1763513484862,3.08,141.48,141.43,6.3669]
[1763513485067,3.08,141.48,141.41,37.24]
[1763513485658,0.04906449,141.46,141.44,6.3664]
[1763513485971,0.05264189,141.46,141.44,6.41443194]
[1763513486462,3.13264189,141.46,141.44,0.04803194]
[1763513486770,0.05264189,141.46,141.44,0.04803194]
[1763513487469,0.05264189,141.46,141.44,6.41443194]
[1763513491983,0.05264189,141.46,141.44,0.04803194]
[1763513492863,0.05264189,141.46,141.44,6.41433194]
[1763513493275,0.05264189,141.46,141.44,8.29124296]
[1763513497166,0.05264189,141.46,141.44,6.41433194]
[1763513498374,0.05264189,141.46,141.45,6.366]
[1763513501779,0.05264189,141.46,141.45,8.24291102]
[1763513503075,3.08,141.52,141.48,6.3645]
[1763513503277,3.08,141.52,141.47,39.11691102]
[1763513503782,3.08,141.52,141.49,6.3642]
[1763513504080,3.12512868,141.52,141.49,6.41508213]
[1763513504481,3.12512868,141.52,141.49,0.05088213]
[1763513507086,3.08,141.5,141.49,0.05088213]
[1763513507380,3.08,141.49,141.45,37.24]
[1763513508277,3.13163701,141.48,141.46,0.05156944]
[1763513508477,3.12900552,141.48,141.46,0.05156944]
[1763513508884,3.12900552,141.48,141.46,6.41696944]
[1763513509091,3.12900552,141.48,141.46,0.05156944]
[1763513509782,0.04900552,141.48,141.46,0.05156944]
[1763513510482,0.04900552,141.48,141.46,6.41706944]
[1763513512793,3.12900552,141.48,141.46,0.05156944]
[1763513515393,9.49370552,141.48,141.46,0.05156944]
[1763513515692,3.08,141.47,141.46,0.05156944]
[1763513518488,3.12900552,141.48,141.46,0.05156944]
[1763513518694,3.08,141.46,141.4,1.87691102]
[1763513518987,3.08,141.43,141.37,1.87691102]
[1763513519189,3.08,141.43,141.37,39.11691102]
[1763513519393,3.08,141.43,141.39,1.87691102]
[1763513519893,1.87691102,141.48,141.39,1.87691102]
[1763513519894,3.13138902,141.42,141.4,0.051827]
[1763513520190,3.13271772,141.42,141.4,0.051827]
[1763513520679,0.05271772,141.42,141.4,0.051827]
[1763513520880,0.05271772,141.42,141.41,1.87691102]
[1763513521694,0.05271772,141.42,141.4,6.420027]
[1763513521894,3.13271772,141.42,141.4,37.311827]
[1763513522098,3.13271772,141.42,141.4,0.051827]
[1763513527095,0.05271772,141.42,141.4,0.051827]
[1763513527496,0.05271772,141.42,141.4,6.420027]
[1763513527700,0.05271772,141.42,141.4,43.680027]
[1763513528099,0.05271772,141.42,141.4,6.420027]
[1763513531097,3.28271772,141.42,141.4,6.420027]
[1763513531292,0.05271772,141.42,141.4,6.420027]
[1763513531792,0.05271772,141.42,141.4,0.051827]
[1763513532085,3.28271772,141.42,141.4,0.051827]
[1763513532286,0.05271772,141.42,141.4,6.420127]
[1763513533301,3.23,141.49,141.41,99.0524]
[1763513533493,3.23,141.49,141.42,37.26]
[1763513534200,0.04573135,141.47,141.44,0.04566783]
[1763513534399,3.27573135,141.47,141.44,0.04566783]
[1763513535600,3.27573135,141.47,141.45,6.3659]
[1763513535801,0.04573135,141.47,141.45,6.3659]
[1763513536593,0.04573135,141.47,141.44,0.04566783]
[1763513536794,3.27573135,141.47,141.44,0.04566783]
[1763513539005,3.27573135,141.47,141.44,6.41206783]
[1763513539699,0.04573135,141.47,141.45,6.3659]
[1763513543205,3.09,141.54,141.48,6.3643]
[1763513543406,3.09,141.53,141.48,6.3643]
[1763513544102,0.04914496,141.52,141.49,0.05260345]
[1763513544292,3.09,141.51,141.49,0.05260345]
[1763513545299,3.09,141.51,141.46,37.24]
[1763513545604,3.09,141.5,141.41,2.9308067]
[1763513545799,3.09,141.5,141.42,37.24]
[1763513545998,3.09,141.49,141.42,37.24]
[1763513546199,3.14179185,141.47,141.44,0.0464353]
[1763513547308,9.50699185,141.47,141.44,0.0464353]
[1763513547606,3.09,141.46,141.44,0.0464353]
[1763513551900,0.05179185,141.47,141.44,0.0464353]
[1763513552503,3.14179185,141.47,141.44,0.0464353]
[1763513554505,3.14179185,141.47,141.38,37.24]
[1763513554710,3.09,141.47,141.4,101.9922067]
[1763513555508,0.05090684,141.45,141.44,6.3664]
[1763513557207,0.05090684,141.45,141.43,37.24]
[1763513557709,3.0,141.5,141.43,37.24]
[1763513558009,3.0,141.55,141.45,99.0264]
[1763513558212,3.0,141.54,141.46,101.9511067]
[1763513558409,3.0,141.54,141.47,37.24]
[1763513558611,3.0,141.54,141.49,6.3641]
[1763513558809,3.0,141.52,141.5,0.05443035]
[1763513574719,3.0,141.52,141.5,6.41813035]
[1763513575418,0.04650905,141.53,141.51,6.3633]
[1763513578522,3.0,141.58,141.53,6.3621]
[1763513579522,0.04580483,141.57,141.54,0.04546449]
[1763513579713,3.0,141.56,141.54,0.04546449]
[1763513581921,3.0,141.56,141.46,2.9308067]
[1763513582127,3.0,141.56,141.47,37.22]
[1763513582427,3.0,141.56,141.49,6.3642]
[1763513582628,3.0,141.56,141.47,37.22]
[1763513583127,3.05208572,141.53,141.5,0.05379416]
[1763513584733,3.05208572,141.53,141.5,6.41749416]
[1763513589536,0.05208572,141.53,141.5,6.41749416]
[1763513589832,0.05208572,141.53,141.51,6.3633]
[1763513590332,0.05208572,141.53,141.5,0.05379416]
[1763513590534,3.14208572,141.53,141.5,37.27379416]
[1763513591336,0.05208572,141.53,141.51,6.3633]
[1763513597141,0.05208572,141.53,141.5,0.05379416]
[1763513597142,3.14208572,141.53,141.5,0.05379416]
[1763513597327,3.14208572,141.53,141.5,37.27379416]
[1763513600431,3.14208572,141.53,141.42,99.0428]
[1763513600631,3.09,141.51,141.41,2.9308067]
[1763513600833,3.09,141.49,141.42,37.22]
[1763513601137,3.09,141.49,141.43,6.3665]
[1763513601440,0.05107279,141.47,141.45,0.05091262]
[1763513602344,0.05107279,141.47,141.45,1.92815876]
[1763513602747,0.05107279,141.47,141.46,37.22]
[1763513602946,0.05107279,141.47,141.45,8.29405876]
[1763513603135,0.05107279,141.47,141.46,37.22]
[1763513607645,3.22107279,141.47,141.45,0.05091262]
[1763513619160,3.22107279,141.47,141.45,6.41691262]
[1763513619561,0.05107279,141.47,141.45,6.41691262]
[1763513619764,0.05107279,141.47,141.45,0.05091262]
[1763513620862,0.05107279,141.47,141.46,6.3656]
[1763513622362,3.12107279,141.47,141.45,0.05091262]
[1763513624366,3.12107279,141.47,141.38,1.87724614]
[1763513624659,3.07,141.45,141.41,6.3678]
[1763513625368,3.07,141.43,141.42,0.04645952]
[1763513625755,0.04480684,141.44,141.42,1.92370566]
[1763513626963,3.11480684,141.44,141.42,0.04645952]
[1763513630573,0.04480684,141.44,141.42,6.41375952]
[1763513633371,0.04480684,141.44,141.43,6.3669]
[1763513635771,0.04480684,141.44,141.42,0.04645952]
[1763513636075,3.11480684,141.44,141.42,0.04645952]
[1763513636862,3.11480684,141.44,141.42,6.41375952]
[1763513639781,0.04480684,141.44,141.42,6.41375952]
[1763513640372,3.11480684,141.44,141.42,6.41375952]
[1763513641786,0.04480684,141.44,141.43,6.3669]
[1763513642079,3.07,141.49,141.43,1.87724614]
[1763513642478,3.07,141.49,141.46,6.3656]
[1763513643071,3.11667975,141.49,141.46,6.41105005]
[1763513643272,3.11667975,141.49,141.46,0.04545005]
[1763513644074,3.11667975,141.49,141.46,6.41105005]
[1763513644574,0.04667975,141.49,141.47,6.365]
[1763513644780,0.04667975,141.49,141.47,8.24224614]
[1763513651082,3.23667975,141.49,141.46,0.04545005]
[1763513652384,0.04667975,141.49,141.46,0.04545005]
[1763513652585,0.04667975,141.49,141.47,1.87724614]
[1763513653189,0.04667975,141.49,141.47,8.24224614]
[1763513653685,3.23667975,141.49,141.47,6.365]
[1763513653888,3.23667975,141.49,141.46,6.41095005]
[1763513655287,0.04667975,141.49,141.47,6.3651]
[1763513655894,0.04667975,141.49,141.47,8.24234614]
[1763513656894,0.04667975,141.49,141.47,6.3651]
[1763513658298,3.23667975,141.49,141.47,6.3651]
[1763513658896,3.23667975,141.49,141.46,0.04545005]
[1763513659897,3.23667975,141.49,141.47,6.365]
[1763513663499,0.04667975,141.49,141.47,6.365]
[1763513664898,0.04667975,141.49,141.48,6.3647]
[1763513666098,0.04667975,141.49,141.48,43.5647]
[1763513667106,8.36726439,141.54,141.48,43.5647]
[1763513667107,2.97,141.54,141.5,6.3634]
[1763513667305,2.97,141.54,141.48,37.2]
[1763513667703,2.97,141.54,141.51,6.3633]
[1763513667896,2.97,141.54,141.48,37.2]
[1763513668204,0.04466598,141.52,141.5,0.05162766]
[1763513668502,0.04466598,141.52,141.38,21.22]
[1763513668503,2.97618559,141.52,141.38,21.22]
[1763513668800,2.97,141.5,141.39,40.13151961]
[1763513669003,2.97,141.49,141.41,6.3677]
[1763513669402,0.052323,141.46,141.44,0.04499121]
[1763513669605,2.97,141.45,141.44,0.04499121]
[1763513670999,2.97,141.45,141.39,6.3684]
[1763513671305,2.97,141.45,141.38,37.2]
[1763513671714,2.93151961,141.49,141.37,6.3694]
[1763513671715,2.97,141.43,141.37,6.3694]
[1763513672008,2.97,141.43,141.35,37.2]
[1763513672203,2.97,141.4,141.39,0.04516838]
[1763513675610,0.05163681,141.41,141.39,0.04516838]
[1763513677511,3.22163681,141.41,141.39,0.04516838]
[1763513678712,3.22163681,141.41,141.33,37.2]
[1763513678713,3.17,141.4,141.33,37.2]
[1763513679504,3.17,141.37,141.35,0.05420244]
[1763513687209,0.0482899,141.38,141.35,0.05420244]
[1763513688208,0.0482899,141.38,141.36,6.3699]
[1763513689306,0.0482899,141.38,141.35,0.05420244]
[1763513689918,0.0482899,141.38,141.36,43.5899]
[1763513690713,0.0482899,141.38,141.36,37.22]
[1763513690921,3.2182899,141.38,141.36,37.22]
[1763513692810,3.2182899,141.38,141.36,6.37]
[1763513692811,0.0482899,141.38,141.36,6.37]
[1763513693114,0.0482899,141.38,141.36,43.59]
[1763513699016,3.2182899,141.38,141.35,0.05420244]
[1763513701118,0.0482899,141.38,141.35,0.05420244]
[1763513701623,3.2182899,141.38,141.35,0.05420244]
[1763513706324,9.5874899,141.38,141.35,0.05420244]
[1763513706624,3.0,141.37,141.35,0.05420244]
[1763513706821,3.0,141.36,141.35,0.05420244]
[1763513707828,3.0,141.36,141.31,6.3723]
[1763513708031,3.0,141.36,141.31,43.5923]
[1763513708333,3.0,141.36,141.31,6.3723]
[1763513708628,3.0,141.39,141.31,102.05641961]
[1763513708835,3.0,141.35,141.34,0.04693722]
[1763513709130,3.0,141.34,141.33,0.0510921]
[1763513709430,3.0,141.34,141.32,0.0498096]
[1763513709613,3.05026891,141.34,141.32,0.0502424]
[1763513712724,0.05026891,141.34,141.32,0.0502424]
[1763513713421,0.05026891,141.34,141.32,6.4219424]
[1763513716115,0.05026891,141.34,141.33,6.3714]
[1763513716322,3.0,141.39,141.32,102.09676201]
[1763513717023,3.0,141.39,141.35,6.3701]
[1763513717229,3.0,141.39,141.36,37.22]
[1763513717629,3.04564789,141.39,141.36,37.27073845]
[1763513718627,3.04564789,141.39,141.36,0.05073845]
[1763513718929,3.04564789,141.39,141.37,37.22]
[1763513719328,3.0,141.37,141.36,0.05073845]
[1763513720826,8.52864327,141.37,141.36,0.05073845]
[1763513721026,3.0,141.38,141.36,0.05073845]
[1763513721431,3.04564789,141.39,141.36,0.05073845]
[1763513721932,3.04564789,141.39,141.36,6.42073845]
[1763513722927,5.53154303,141.38,141.36,0.05073845]
[1763513723126,3.04564789,141.39,141.36,0.05073845]
[1763513726635,3.04564789,141.39,141.36,6.42073845]
[1763513726835,0.04564789,141.39,141.36,1.929973]
[1763513727134,3.03564789,141.39,141.36,1.929973]
[1763513727334,3.03564789,141.39,141.37,37.22]
[1763513727631,0.04564789,141.39,141.37,43.5896]
[1763513728232,3.03564789,141.39,141.37,43.5896]
[1763513729629,0.04564789,141.39,141.37,43.5896]
[1763513730024,0.04564789,141.39,141.38,1.87923455]
[1763513730435,3.03564789,141.39,141.36,0.05073845]
[1763513730736,3.03564789,141.39,141.37,37.2]
[1763513730936,3.03564789,141.39,141.38,37.2]
[1763513732634,3.03564789,141.39,141.37,37.2]
[1763513735140,0.04564789,141.39,141.37,45.44863455]
[1763513735543,8.78025195,141.44,141.37,39.07923455]
[1763513735842,8.78025195,141.43,141.39,1.87923455]
[1763513736042,3.26,141.43,141.39,1.87923455]
[1763513736538,3.31016883,141.42,141.4,0.04948286]
[1763513737444,0.05016883,141.42,141.4,0.04948286]
[1763513739944,0.05016883,141.42,141.41,6.3678]
[1763513741641,0.05016883,141.42,141.41,43.5678]
[1763513742746,3.26,141.47,141.42,6.3672]
[1763513742948,3.26,141.45,141.42,6.3672]
[1763513743649,3.31110666,141.45,141.42,6.41731119]
[1763513744446,3.31110666,141.45,141.43,37.2]
[1763513747355,3.31110666,141.45,141.42,0.05011119]
[1763513747356,8.81931207,141.45,141.42,0.05011119]
[1763513747562,3.26,141.44,141.42,37.25011119]
[1763513749252,3.26,141.44,141.42,0.05011119]
[1763513749459,8.76767933,141.44,141.42,0.05011119]
[1763513749657,3.26,141.43,141.42,0.05011119]
[1763513751658,3.26,141.43,141.39,37.18]
[1763513752064,3.26,141.42,141.37,1.87923455]
[1763513752659,3.26,141.42,141.38,37.22735727]
[1763513752863,3.31304959,141.41,141.38,37.22735727]
[1763513753164,0.05387184,141.41,141.39,1.87923455]
[1763513754265,0.05387184,141.41,141.38,37.22477008]
[1763513754568,0.05387184,141.41,141.39,1.87923455]
[1763513754973,0.05387184,141.41,141.4,37.18]
[1763513755466,0.05387184,141.41,141.39,8.24783455]
[1763513755668,0.05387184,141.41,141.4,37.18]
[1763513756170,0.05387184,141.41,141.39,8.24783455]
[1763513756470,0.05387184,141.41,141.38,0.04477008]
[1763513756471,3.31387184,141.41,141.38,0.04477008]
[1763513756768,3.26,141.37,141.33,8.25053455]
[1763513756966,3.26,141.37,141.33,37.18]
[1763513757770,0.04652762,141.36,141.34,0.04878889]
[1763513757970,3.30652762,141.36,141.34,0.04878889]
[1763513758972,0.04652762,141.36,141.34,0.04878889]
[1763513759961,0.04652762,141.36,141.35,1.87923455]
[1763513761172,3.26,141.42,141.35,1.87923455]
[1763513761371,5.51928982,141.41,141.35,1.87923455]
[1763513761574,3.26,141.42,141.35,1.87923455]
[1763513761771,8.7790509,141.41,141.35,1.87923455]
[1763513761972,3.26,141.41,141.35,1.87923455]
[1763513762169,0.047242,141.39,141.37,0.05083747]
[1763513762767,0.047242,141.39,141.37,37.23083747]
[1763513763570,0.047242,141.39,141.38,1.87923455]
[1763513765075,8.73308312,141.43,141.38,8.24813455]
[1763513765274,3.23,141.43,141.38,8.24813455]
[1763513766172,0.05301069,141.42,141.39,0.04572946]
[1763513766366,3.28301069,141.42,141.39,0.04572946]
[1763513769279,3.28301069,141.42,141.39,37.22572946]
[1763513771385,0.05301069,141.42,141.39,37.22572946]
[1763513771583,0.05301069,141.42,141.4,1.87923455]
[1763513772275,0.05301069,141.42,141.4,8.24743455]
[1763513772676,3.28301069,141.42,141.4,1.87923455]
[1763513772873,3.28301069,141.42,141.39,0.04572946]
[1763513773071,3.28301069,141.42,141.4,37.18]
[1763513773691,1.87923455,141.47,141.4,37.18]
[1763513773980,5.5057626,141.46,141.4,37.18]
[1763513774280,5.5057626,141.45,141.4,37.18]
[1763513774481,5.5057626,141.44,141.4,37.18]
[1763513774684,5.55490248,141.43,141.41,0.05117258]
[1763513774884,0.04913988,141.43,141.41,0.05117258]